bitfinex-derivatives/quotes_SOLF0:USTF0_20241224
["timestamp","ask_amount","ask_price","bid_price","bid_amount"]
[1735004996976,2.6566,188.45,188.41,2.6571]
[1735004997274,3.1841,188.48,188.4,1.06157112]
[1735004998473,2.6569,188.42,188.4,1.06157112]
[1735004998775,4.6978,188.48,188.4,1.06157112]
[1735004998976,12.14874885,188.46,188.4,1.06157112]
[1735004999176,2.6571,188.41,188.4,1.06157112]
[1735004999577,12.14874885,188.46,188.34,3.44]
[1735005000380,2.6574,188.39,188.34,6.098]
[1735005001978,2.6574,188.39,188.31,12.14874885]
[1735005001979,2.6576,188.37,188.32,2.6583]
[1735005002874,2.6576,188.37,188.3,15.58874885]
[1735005003180,12.14874885,188.46,188.33,12.14874885]
[1735005003377,12.14874885,188.46,188.31,1.06207848]
[1735005003378,12.14874885,188.46,188.36,12.14874885]
[1735005003683,2.6568,188.43,188.38,2.6574]
[1735005004476,2.6569,188.42,188.38,2.6574]
[1735005004982,2.6569,188.42,188.37,2.6576]
[1735005005182,2.6568,188.44,188.36,15.58874885]
[1735005005680,2.6568,188.44,188.37,1.06174019]
[1735005005881,2.6568,188.43,188.37,1.06174019]
[1735005006081,12.14874885,188.47,188.37,1.06174019]
[1735005007876,4.6978,188.48,188.38,12.14874885]
[1735005008081,4.6978,188.48,188.38,13.21043268]
[1735005008479,4.6978,188.48,188.41,2.657]
[1735005008678,15.58874885,188.54,188.41,12.14874885]
[1735005008885,15.58874885,188.54,188.42,3.44]
[1735005009084,12.14874885,188.54,188.43,12.14874885]
[1735005010082,12.14874885,188.54,188.43,14.80554885]
[1735005010584,12.14874885,188.54,188.43,12.14874885]
[1735005012690,3.1466,188.56,188.43,12.14874885]
[1735005013485,2.6555,188.52,188.47,2.6561]
[1735005016089,12.14874885,188.54,188.38,1.06168383]
[1735005016290,12.14874885,188.51,188.39,3.44]
[1735005016595,12.14874885,188.48,188.38,1.06168383]
[1735005016782,3.1851,188.47,188.38,1.06168383]
[1735005018383,2.6571,188.41,188.38,1.06168383]
[1735005019189,2.6573,188.4,188.38,1.06168383]
[1735005019393,12.14874885,188.45,188.38,1.06168383]
[1735005020586,2.6573,188.39,188.38,1.06168383]
[1735005021394,6.6251,188.47,188.38,1.06168383]
[1735005022496,2.657,188.42,188.38,1.06168383]
[1735005024791,2.657,188.42,188.38,3.71908383]
[1735005026095,2.6568,188.43,188.38,3.71908383]
[1735005026891,2.657,188.42,188.38,3.71908383]
[1735005033293,2.6573,188.39,188.38,1.06168383]
[1735005034897,2.6576,188.37,188.35,3.44]
[1735005035197,2.6576,188.37,188.33,14.80694885]
[1735005035392,2.6578,188.36,188.33,2.6582]
[1735005037789,2.6578,188.36,188.3,15.60874885]
[1735005037998,12.14874885,188.42,188.31,2.6584]
[1735005038189,2.658,188.35,188.31,2.6584]
[1735005038991,2.658,188.35,188.3,15.60874885]
[1735005039192,2.658,188.35,188.32,2.6583]
[1735005040300,2.658,188.34,188.33,7.8045156]
[1735005040703,3.0582,188.39,188.33,7.8045156]
[1735005041205,3.0582,188.39,188.3,6.1186]
[1735005041394,7.8045156,188.38,188.31,7.8045156]
[1735005041900,2.6582,188.33,188.28,3.46]
[1735005042104,7.8045156,188.36,188.29,7.8045156]
[1735005042505,2.6586,188.31,188.27,10.4634156]
[1735005042706,7.8045156,188.36,188.27,10.4634156]
[1735005043005,7.8045156,188.34,188.27,10.4634156]
[1735005043394,2.6583,188.32,188.27,10.4634156]
[1735005043595,7.8045156,188.34,188.27,10.4634156]
[1735005044003,2.6586,188.31,188.27,2.6589]
[1735005044212,1.6156,188.33,188.25,59.13633119]
[1735005044403,1.6156,188.33,188.23,6.1195]
[1735005044800,2.6588,188.29,188.24,12.20223805]
[1735005045206,2.6588,188.29,188.23,3.46]
[1735005045402,2.6585,188.31,188.23,3.46]
[1735005045601,1.6156,188.33,188.25,12.20223805]
[1735005046004,2.6584,188.32,188.25,12.20223805]
[1735005046306,3.46,188.37,188.25,12.20223805]
[1735005046500,2.6582,188.34,188.3,2.6586]
[1735005046701,3.46,188.37,188.28,12.20223805]
[1735005047411,3.46,188.37,188.3,2.6586]
[1735005047710,3.46,188.37,188.28,12.20223805]
[1735005047910,3.46,188.37,188.29,2.6586]
[1735005048212,3.46,188.37,188.28,12.20223805]
[1735005048419,2.6582,188.33,188.3,2.6586]
[1735005048608,2.6582,188.33,188.28,12.20223805]
[1735005049605,2.6586,188.3,188.27,2.659]
[1735005049912,2.6586,188.3,188.25,12.20223805]
[1735005050510,2.6588,188.29,188.25,12.20223805]
[1735005051013,2.6588,188.29,188.25,14.86143805]
[1735005053415,2.6588,188.29,188.25,12.20223805]
[1735005053616,2.6588,188.29,188.26,2.6592]
[1735005054113,2.6586,188.31,188.27,2.659]
[1735005054314,12.20223805,188.37,188.25,12.20223805]
[1735005056422,2.6584,188.32,188.28,2.6588]
[1735005058815,2.6579,188.35,188.31,2.6584]
[1735005059814,3.0582,188.39,188.31,2.6584]
[1735005060019,2.6581,188.34,188.31,2.6584]
[1735005061617,2.6583,188.33,188.29,2.6587]
[1735005061817,2.6583,188.33,188.29,6.0987]
[1735005062522,3.0582,188.39,188.29,3.44]
[1735005063424,2.6577,188.37,188.32,2.6582]
[1735005064122,2.6577,188.37,188.32,7.80522673]
[1735005064325,2.6577,188.37,188.33,2.6581]
[1735005064922,2.6574,188.39,188.35,2.6578]
[1735005065127,3.1687,188.45,188.36,7.80522673]
[1735005065326,3.1687,188.45,188.35,3.44]
[1735005065327,10.97392673,188.45,188.38,7.80522673]
[1735005066518,2.6568,188.43,188.38,10.46272673]
[1735005067222,7.80522673,188.41,188.35,11.24522673]
[1735005068427,2.6572,188.4,188.35,13.90312673]
[1735005070131,2.6572,188.4,188.35,6.0979]
[1735005070829,2.6572,188.4,188.35,2.6579]
[1735005071030,12.19249938,188.44,188.35,2.6579]
[1735005071434,12.19249938,188.44,188.33,3.44]
[1735005072535,2.6576,188.38,188.34,2.658]
[1735005073022,12.19249938,188.41,188.25,59.13829737]
[1735005073227,3.44,188.44,188.26,3.44]
[1735005073228,12.19249938,188.38,188.26,3.44]
[1735005073423,3.0726,188.37,188.25,71.33079675]
[1735005073631,2.6586,188.3,188.26,2.6592]
[1735005073826,3.0726,188.37,188.24,74.67967181]
[1735005074334,12.19249938,188.35,188.24,74.67967181]
[1735005074736,12.19249938,188.35,188.24,15.63249938]
[1735005075533,2.6588,188.29,188.25,2.6593]
[1735005075734,12.19249938,188.32,188.18,62.64337243]
[1735005075939,1.6251,188.31,188.19,15.63249938]
[1735005076235,2.6591,188.27,188.19,15.63249938]
[1735005077335,2.6592,188.26,188.21,2.6598]
[1735005077529,12.19249938,188.29,188.16,12.19249938]
[1735005077733,3.2146,188.28,188.17,3.44]
[1735005078339,2.6595,188.24,188.18,2.6602]
[1735005078538,3.2146,188.28,188.18,2.6602]
[1735005078741,3.2146,188.28,188.19,12.19249938]
[1735005080042,2.6595,188.24,188.2,2.6599]
[1735005080236,3.2146,188.28,188.19,12.19249938]
[1735005080949,2.6599,188.22,188.17,2.6604]
[1735005081445,3.2146,188.28,188.17,2.6604]
[1735005082341,3.2146,188.28,188.16,12.19249938]
[1735005082941,12.19249938,188.26,188.11,3.5975]
[1735005083141,12.19249938,188.2,188.06,3.44]
[1735005083343,3.1098,188.19,188.07,12.19249938]
[1735005083541,2.6608,188.15,188.1,2.6613]
[1735005083942,2.6608,188.15,188.09,12.19249938]
[1735005084143,2.6608,188.15,188.09,14.85399938]
[1735005085139,12.19249938,188.17,188.0,59.04717243]
[1735005085339,12.19249938,188.13,188.0,59.04717243]
[1735005085745,12.19249938,188.13,188.0,12.19249938]
[1735005086140,12.19249938,188.16,188.03,12.19249938]
[1735005086340,12.19249938,188.09,187.96,59.04717243]
[1735005086639,4.8163,188.08,187.96,59.04717243]
[1735005086844,8.2563,188.08,187.96,59.04717243]
[1735005087043,2.6623,188.04,187.95,2.6635]
[1735005087247,8.2563,188.08,187.94,12.19249938]
[1735005087447,12.19249938,188.06,187.94,12.19249938]
[1735005087649,15.69249938,188.06,187.94,12.19249938]
[1735005088160,8.3163,188.08,187.94,12.19249938]
[1735005088339,8.3163,188.08,187.93,15.69249938]
[1735005088537,8.3163,188.08,187.93,12.19249938]
[1735005088737,2.6632,187.98,187.91,14.85659938]
[1735005088939,12.19249938,188.03,187.91,12.19249938]
[1735005089350,2.663,187.99,187.93,2.6638]
[1735005089549,12.19249938,188.03,187.93,2.6638]
[1735005090145,2.6631,187.99,187.91,14.85649938]
[1735005090351,2.6631,187.99,187.91,12.19249938]
[1735005090549,12.19249938,188.03,187.91,12.19249938]
[1735005091049,12.19249938,188.03,187.9,3.5]
[1735005092051,2.6633,187.97,187.91,2.6641]
[1735005092251,12.19249938,188.03,187.9,3.5]
[1735005092749,2.6632,187.98,187.92,2.664]
[1735005092947,12.19249938,188.03,187.9,3.5]
[1735005093141,15.69249938,188.03,187.9,3.5]
[1735005093347,15.69249938,188.03,187.91,12.19249938]
[1735005093951,15.69249938,188.03,187.92,2.6639]
[1735005093952,2.6631,187.99,187.92,2.6639]
[1735005094148,15.69249938,188.03,187.88,12.19249938]
[1735005094546,15.69249938,188.03,187.89,2.6644]
[1735005095049,15.69249938,188.03,187.88,12.19249938]
[1735005095652,2.663,187.99,187.88,12.19249938]
[1735005096051,15.69249938,188.03,187.88,12.19249938]
[1735005096251,2.6629,188.0,187.91,12.19249938]
[1735005096454,2.6629,188.0,187.92,3.52]
[1735005097053,2.6631,187.99,187.93,2.6637]
[1735005097747,12.19249938,188.06,187.92,3.52]
[1735005098153,2.663,188.0,187.94,2.6637]
[1735005098551,12.19249938,188.06,187.92,3.52]
[1735005098746,12.19249938,188.03,187.91,12.19249938]
[1735005098950,12.19249938,188.0,187.88,12.19249938]
[1735005099155,2.6637,187.94,187.88,2.6645]
[1735005099348,4.6089,187.99,187.86,3.52]
[1735005099759,2.6638,187.94,187.88,2.6645]
[1735005099954,2.6638,187.94,187.86,3.52]
[1735005099955,12.19249938,187.97,187.86,3.52]
[1735005100449,2.664,187.92,187.86,6.1847]
[1735005100850,2.664,187.92,187.86,3.52]
[1735005102656,2.664,187.92,187.87,2.6647]
[1735005104353,12.19249938,187.97,187.84,3.52]
[1735005105157,2.6636,187.95,187.9,2.6642]
[1735005105353,12.19249938,187.97,187.84,3.52]
[1735005105549,12.19249938,187.97,187.85,0.97917122]
[1735005106658,2.6637,187.94,187.87,2.6646]
[1735005106856,2.6637,187.94,187.84,3.52]
[1735005107056,2.6637,187.94,187.85,0.97916494]
[1735005107260,2.6637,187.94,187.88,2.6644]
[1735005108863,2.6637,187.94,187.84,15.71249938]
[1735005109064,2.6637,187.94,187.85,0.97914108]
[1735005109262,2.6637,187.94,187.84,15.71249938]
[1735005109463,2.6637,187.94,187.85,0.97914196]
[1735005109657,2.6637,187.94,187.89,2.6644]
[1735005110667,12.19249938,187.96,187.85,3.52]
[1735005110865,12.19249938,187.96,187.87,2.6647]
[1735005111965,8.1289,187.99,187.87,2.6647]
[1735005112162,12.19249938,187.95,187.87,2.6647]
[1735005112560,2.6641,187.91,187.87,2.6647]
[1735005113063,2.664,187.92,187.87,2.6647]
[1735005113658,12.19249938,187.92,187.8,59.27006698]
[1735005113858,3.1766,187.91,187.81,0.97935013]
[1735005114062,3.1766,187.91,187.8,59.27006698]
[1735005114263,3.1766,187.91,187.81,0.97942979]
[1735005114458,3.1766,187.91,187.8,59.27006698]
[1735005115476,2.6646,187.88,187.8,59.27006698]
[1735005116568,2.6646,187.88,187.83,2.6652]
[1735005118169,2.6644,187.9,187.81,12.19249938]
[1735005118370,3.1766,187.91,187.82,0.97940169]
[1735005118566,3.1766,187.91,187.83,0.97940169]
[1735005118767,3.1766,187.91,187.8,59.27006698]
[1735005118968,12.19249938,187.95,187.81,13.17182744]
[1735005119267,12.19249938,187.95,187.8,62.95006698]
[1735005119268,12.19249938,187.95,187.84,12.19249938]
[1735005120271,12.19249938,187.98,187.84,12.19249938]
[1735005120473,12.19249938,187.98,187.85,0.97927905]
[1735005120673,12.19249938,187.98,187.86,3.68]
[1735005121570,15.87249938,187.98,187.86,3.68]
[1735005122371,2.6639,187.93,187.88,2.6645]
[1735005123070,15.87249938,187.98,187.86,3.68]
[1735005123272,2.6641,187.92,187.87,2.6647]
[1735005123568,2.6641,187.92,187.81,58.31952355]
[1735005123569,12.19249938,187.92,187.81,83.35195743]
[1735005123871,2.6647,187.88,187.82,2.6653]
[1735005124069,3.1755,187.91,187.82,2.6653]
[1735005124469,4.8312,187.91,187.82,2.6653]
[1735005125189,2.6645,187.89,187.85,2.6649]
[1735005125374,4.8312,187.91,187.81,12.19249938]
[1735005127679,4.8312,187.91,187.8,59.27006698]
[1735005127878,2.6649,187.86,187.81,2.6654]
[1735005128678,2.6647,187.88,187.83,2.6652]
[1735005129475,1.5997,187.91,187.8,59.27006698]
[1735005129779,12.19249938,187.98,187.84,12.19249938]
[1735005129980,12.19249938,187.98,187.85,3.68]
[1735005130178,2.6636,187.95,187.88,2.6644]
[1735005130377,2.6636,187.95,187.85,3.68]
[1735005131475,2.6636,187.95,187.9,2.6642]
[1735005132183,2.664,187.92,187.85,3.68]
[1735005132681,2.664,187.92,187.87,2.6647]
[1735005133381,2.6638,187.94,187.85,3.68]
[1735005133779,4.6683,188.0,187.85,3.68]
[1735005133980,4.6683,188.0,187.87,12.19249938]
[1735005134283,4.6683,188.0,187.85,3.68]
[1735005134484,12.19249938,187.97,187.85,3.68]
[1735005135481,12.19249938,187.94,187.83,58.31952355]
[1735005135687,2.6645,187.89,187.84,2.665]
[1735005136286,2.6645,187.89,187.83,16.5199345]
[1735005136482,2.6643,187.9,187.85,2.6648]
[1735005136676,2.6643,187.9,187.83,16.5199345]
[1735005136880,2.6643,187.9,187.83,12.8399345]
[1735005137091,2.6643,187.9,187.82,3.68]
[1735005138491,2.6643,187.9,187.84,2.6651]
[1735005138686,2.6634,187.96,187.84,12.19249938]
[1735005138893,4.6683,188.0,187.87,12.19249938]
[1735005139082,12.19249938,187.97,187.88,6.3444]
[1735005139287,2.6642,187.91,187.88,3.68]
[1735005139488,2.6642,187.91,187.84,15.87249938]
[1735005139689,2.664,187.92,187.87,2.6646]
[1735005140983,2.664,187.92,187.84,12.19249938]
[1735005141188,2.6643,187.91,187.82,12.19249938]
[1735005142089,2.6643,187.91,187.87,2.6647]
[1735005142490,12.19249938,187.97,187.82,12.19249938]
[1735005142695,2.664,187.93,187.88,2.6644]
[1735005143195,12.19249938,187.97,187.89,2.6644]
[1735005143394,3.68,187.99,187.86,3.68]
[1735005144098,2.6635,187.96,187.9,2.6641]
[1735005144394,16.86079938,188.0,187.88,12.19249938]
[1735005144694,2.6633,187.97,187.93,2.6638]
[1735005145291,2.6633,187.97,187.9,2.6642]
[1735005145486,20.54079938,188.0,187.86,3.68]
[1735005145790,20.54079938,188.0,187.89,2.6643]
[1735005145997,2.6637,187.95,187.89,2.6643]
[1735005146497,2.6637,187.95,187.9,2.6643]
[1735005147398,2.6634,187.97,187.91,2.664]
[1735005149197,20.54079938,188.0,187.85,3.68]
[1735005149403,2.6637,187.95,187.89,2.6643]
[1735005149907,2.6637,187.95,187.86,3.76]
[1735005150100,2.6637,187.95,187.9,2.6642]
[1735005151100,10.50430265,187.97,187.92,2.6639]
[1735005152597,2.6633,187.97,187.92,2.6639]
[1735005152997,2.6633,187.97,187.93,2.6637]
[1735005154306,85.58257666,188.1,187.92,3.76]
[1735005154606,2.6629,188.0,187.95,2.6635]
[1735005154802,17.09126045,188.06,187.92,16.00716045]
[1735005155307,2.6627,188.02,187.97,2.6632]
[1735005155702,2.6624,188.03,187.98,2.663]
[1735005156006,17.09126045,188.06,187.95,12.24716045]
[1735005156703,4.8441,188.06,187.95,12.24716045]
[1735005157402,2.6623,188.04,187.99,2.663]
[1735005159406,4.8441,188.06,187.99,2.663]
[1735005159609,2.6625,188.03,187.99,2.663]
[1735005165007,2.6623,188.05,188.0,2.6628]
[1735005165211,3.3316,188.06,187.98,16.00716045]
[1735005165713,5.9937,188.06,188.01,2.6626]
[1735005166112,13.97967911,188.1,187.98,16.00716045]
[1735005166313,2.6619,188.07,188.02,2.6625]
[1735005167100,2.6617,188.08,188.03,2.6623]
[1735005168713,2.6617,188.08,188.04,2.6623]
[1735005169304,13.97967911,188.1,187.98,16.00716045]
[1735005169509,12.24716045,188.07,187.94,12.24716045]
[1735005169708,16.00716045,188.07,187.94,16.00716045]
[1735005170111,2.6629,188.0,187.96,2.6634]
[1735005171013,12.24716045,188.04,187.91,12.24716045]
[1735005171212,4.7938,188.03,187.91,12.24716045]
[1735005172609,2.6629,188.0,187.95,2.6635]
[1735005173015,4.7938,188.03,187.92,3.76]
[1735005173315,2.6627,188.01,187.96,2.6633]
[1735005173709,4.7938,188.03,187.95,2.6635]
[1735005173910,2.6629,188.0,187.95,2.6635]
[1735005175112,4.7938,188.03,187.92,3.76]
[1735005175315,2.663,187.99,187.93,2.6637]
[1735005175515,4.7938,188.03,187.93,2.6637]
[1735005175715,4.7938,188.03,187.91,12.24716045]
[1735005175916,2.6633,187.97,187.92,2.6639]
[1735005176216,2.6633,187.97,187.92,10.50175502]
[1735005178108,2.6633,187.97,187.94,7.83785502]
[1735005178309,7.83785502,188.02,187.94,7.83785502]
[1735005178516,4.7938,188.03,187.96,7.83785502]
[1735005178911,2.6628,188.01,187.96,10.50125502]
[1735005179114,4.7938,188.03,187.96,10.50125502]
[1735005180618,4.7938,188.03,187.96,7.83785502]
[1735005180913,2.663,188.0,187.96,7.83785502]
[1735005181814,2.663,188.0,187.96,10.50125502]
[1735005182514,2.6627,188.02,187.98,7.83785502]
[1735005182720,4.7938,188.03,187.98,7.83785502]
[1735005183118,4.7938,188.03,187.95,3.72]
[1735005183119,5.45251866,188.1,188.0,7.83785502]
[1735005183417,9.45195502,188.09,188.02,7.83785502]
[1735005184314,1.6141,188.09,188.04,7.83785502]
[1735005184915,2.662,188.07,188.04,7.83785502]
[1735005185318,1.5146,188.1,188.06,7.83785502]
[1735005185619,3.1287,188.16,188.07,3.72]
[1735005185818,3.1287,188.16,188.12,7.83785502]
[1735005186020,3.1287,188.16,188.12,11.55785502]
[1735005186315,1.6141,188.16,188.12,3.72]
[1735005186517,4.2747,188.16,188.12,3.72]
[1735005187019,2.6606,188.16,188.12,3.72]
[1735005187213,1.5399,188.2,188.12,3.72]
[1735005187419,2.6605,188.17,188.12,3.72]
[1735005187619,1.5399,188.2,188.12,3.72]
[1735005188020,2.6607,188.16,188.12,3.72]
[1735005189520,1.5399,188.2,188.1,12.22022273]
[1735005189724,2.6611,188.13,188.11,3.72]
[1735005190725,1.5399,188.2,188.11,3.72]
[1735005190921,1.5399,188.2,188.13,12.22022273]
[1735005191120,2.6602,188.19,188.13,14.88112273]
[1735005191319,1.5161,188.21,188.13,12.22022273]
[1735005192524,1.5802,188.26,188.16,12.22022273]
[1735005192726,1.5802,188.26,188.17,3.72]
[1735005193727,1.5802,188.26,188.16,12.22022273]
[1735005194024,1.5802,188.26,188.17,3.72]
[1735005194429,2.6597,188.22,188.17,3.72]
[1735005194732,13.80042273,188.26,188.17,3.72]
[1735005195423,2.6599,188.21,188.17,3.72]
[1735005197632,2.6603,188.19,188.16,3.72]
[1735005199534,2.6603,188.19,188.15,3.72]
[1735005200938,2.66,188.21,188.15,6.3807]
[1735005201135,1.5802,188.26,188.16,12.22022273]
[1735005201828,1.5802,188.26,188.19,12.22022273]
[1735005202029,3.0883,188.28,188.19,12.22022273]
[1735005203237,1.5639,188.33,188.19,12.22022273]
[1735005203535,1.5639,188.33,188.11,3.612]
[1735005203536,2.6592,188.26,188.2,3.72]
[1735005203736,2.6592,188.26,188.18,12.22022273]
[1735005203737,2.6592,188.26,188.21,3.72]
[1735005204029,12.22022273,188.31,188.21,6.3798]
[1735005204233,2.6589,188.28,188.21,3.72]
[1735005205435,2.6589,188.28,188.22,2.6597]
[1735005206726,2.6586,188.31,188.25,2.6592]
[1735005206927,2.6586,188.31,188.24,12.22022273]
[1735005208427,2.6586,188.31,188.26,2.659]
[1735005208631,2.6586,188.31,188.27,3.76]
[1735005209932,2.6586,188.31,188.24,12.22022273]
[1735005209933,4.7599,188.33,188.24,12.22022273]
[1735005210136,4.7599,188.33,188.25,3.76]
[1735005210431,4.7599,188.33,188.06,92.80318533]
[1735005210634,2.6593,188.25,188.2,2.66]
[1735005211033,2.6593,188.25,188.2,6.42]
[1735005213731,2.49482687,188.4,188.24,12.22022273]
[1735005213937,3.185,188.39,188.28,12.22022273]
[1735005214233,3.185,188.39,188.29,3.76]
[1735005214234,2.6582,188.34,188.29,3.76]
[1735005214435,3.185,188.39,188.29,3.76]
[1735005215043,2.6578,188.36,188.3,2.6585]
[1735005215737,3.185,188.39,188.3,2.6585]
[1735005215936,3.185,188.39,188.29,3.76]
[1735005216540,1.5673,188.38,188.25,3.76]
[1735005216747,12.22022273,188.36,188.25,3.76]
[1735005217450,2.6588,188.29,188.25,3.76]
[1735005218254,2.6588,188.29,188.25,6.4193]
[1735005218455,2.6582,188.33,188.25,3.76]
[1735005218650,12.22022273,188.36,188.25,3.76]
[1735005220055,2.6589,188.29,188.25,3.76]
[1735005222455,2.6586,188.31,188.26,12.22022273]
[1735005222651,1.5673,188.38,188.26,12.22022273]
[1735005223060,2.6587,188.3,188.26,12.22022273]
[1735005225154,12.22022273,188.36,188.23,12.22022273]
[1735005225360,12.22022273,188.33,188.24,3.76]
[1735005225761,2.6594,188.25,188.21,1.06264279]
[1735005225960,2.6594,188.25,188.21,4.82264279]
[1735005227059,3.76,188.34,188.21,1.06264279]
[1735005227060,2.6597,188.22,188.21,1.06264279]
[1735005227965,12.22022273,188.27,188.15,3.76]
[1735005228160,12.22022273,188.24,188.15,3.76]
[1735005228356,12.22022273,188.21,188.08,1.4776]
[1735005228558,2.661,188.14,188.09,3.76]
[1735005228863,2.661,188.14,188.09,6.4216]
[1735005233661,2.661,188.13,188.09,3.76]
[1735005234260,12.22022273,188.18,188.08,3.76]
[1735005234464,12.22022273,188.18,188.05,2.662]
[1735005234663,12.22022273,188.18,188.06,3.76]
[1735005235063,2.6613,188.11,188.06,3.76]
[1735005235262,12.22022273,188.18,188.05,2.662]
[1735005235467,12.22022273,188.18,188.05,6.422]
[1735005236666,2.6615,188.1,188.05,6.422]
[1735005239569,2.6613,188.12,188.07,12.22022273]
[1735005240763,2.6613,188.11,188.07,12.22022273]
[1735005241570,2.6613,188.11,188.06,2.662]
[1735005244275,12.22022273,188.18,188.05,3.76]
[1735005244572,2.6616,188.09,188.05,3.76]
[1735005247175,2.6618,188.08,188.04,14.88242273]
[1735005247378,15.94022273,188.15,188.02,2.6625]
[1735005247572,15.94022273,188.15,187.96,3.8031]
[1735005247573,15.94022273,188.15,188.01,3.72]
[1735005248477,2.6622,188.05,188.0,14.88302273]
[1735005248665,15.94022273,188.15,188.01,3.72]
[1735005249270,2.6621,188.06,188.01,6.3826]
[1735005252183,15.94022273,188.15,188.01,6.3826]
[1735005252378,2.6623,188.05,188.0,14.88302273]
[1735005252583,12.22022273,188.09,187.98,3.72]
[1735005252776,1.7314995,188.2,187.98,3.72]
[1735005252982,3.1171,188.17,188.06,12.22022273]
[1735005253180,3.1171,188.17,188.07,3.72]
[1735005254576,2.661,188.14,188.09,2.6616]
[1735005260983,3.1171,188.17,188.09,2.6616]
[1735005261188,2.661,188.13,188.09,2.6616]
[1735005262386,3.1171,188.17,188.1,2.6614]
[1735005262582,1.6019,188.17,188.11,12.22022273]
[1735005262786,1.7314995,188.2,188.11,12.22022273]
[1735005262990,4.3915995,188.2,188.14,2.6608]
[1735005264194,4.3915995,188.2,188.14,14.88102273]
[1735005264391,2.6599,188.22,188.16,2.6605]
[1735005264689,1.6002,188.24,188.16,2.6605]
[1735005265087,2.6602,188.19,188.15,2.6607]
[1735005265294,1.6002,188.24,188.14,12.22022273]
[1735005265794,2.6602,188.19,188.15,2.6607]
[1735005266790,1.6002,188.24,188.14,12.22022273]
[1735005267094,1.6002,188.24,188.12,3.7]
[1735005267095,12.22022273,188.23,188.12,3.7]
[1735005267689,2.6607,188.16,188.12,6.3611]
[1735005269899,12.22022273,188.23,188.12,3.7]
[1735005270098,2.6608,188.15,188.12,3.7]
[1735005271591,2.6608,188.15,188.11,2.6613]
[1735005271901,9.58390502,188.24,188.08,13.86532273]
[1735005271902,12.22022273,188.2,188.1,3.7]
[1735005272301,2.6608,188.15,188.11,2.6612]
[1735005273006,12.22022273,188.2,188.11,2.6612]
[1735005273007,2.6606,188.16,188.11,2.6612]
[1735005274112,20.20392775,188.23,188.11,2.6612]
[1735005274408,12.22022273,188.23,188.1,3.7]
[1735005274811,2.6609,188.14,188.1,3.7]
[1735005276412,2.6609,188.14,188.1,6.3614]
[1735005276612,2.6609,188.14,188.1,3.7]
[1735005277408,2.6609,188.14,188.1,6.3614]
[1735005278211,2.6609,188.14,188.12,7.8220625]
[1735005281915,2.6607,188.16,188.12,7.8220625]
[1735005282411,2.6607,188.16,188.12,3.7]
[1735005282608,2.6599,188.21,188.15,2.6606]
[1735005282815,2.6599,188.21,188.19,7.8220625]
[1735005283211,4.2597,188.24,188.19,7.8220625]
[1735005283412,1.6002,188.24,188.18,3.7]
[1735005283705,2.6598,188.22,188.19,7.8220625]
[1735005284109,1.6002,188.24,188.13,3.7]
[1735005284311,2.6604,188.18,188.13,3.7]
[1735005284714,12.21759101,188.23,188.13,3.7]
[1735005284915,2.6607,188.16,188.11,12.21759101]
[1735005285118,2.6607,188.16,188.12,3.7]
[1735005289114,2.6607,188.15,188.12,3.7]
[1735005291223,2.6607,188.15,188.11,12.21759101]
[1735005291515,2.6607,188.15,188.11,15.91759101]
[1735005294714,2.6606,188.16,188.11,18.57879101]
[1735005294920,9.62600562,188.24,188.11,18.57879101]
[1735005295116,1.6002,188.24,188.11,18.57879101]
[1735005295920,1.6002,188.24,188.12,2.6611]
[1735005296427,2.6606,188.16,188.11,18.57879101]
[1735005296825,2.6606,188.16,188.11,15.91759101]
[1735005297017,2.6606,188.16,188.12,2.6611]
[1735005297222,2.6607,188.15,188.11,15.91759101]
[1735005298523,2.6607,188.15,188.11,18.57889101]
[1735005298728,12.21759101,188.21,188.08,12.21759101]